bitfinex-derivatives/quotes_BNBF0:USTF0_20250630
["timestamp","ask_amount","ask_price","bid_price","bid_amount"]
[1751309022367,0.26461363,658.03,657.44,1.1878836]
[1751309022568,0.26461363,658.03,657.45,1.1878836]
[1751309022771,0.26461363,658.03,657.46,1.1878836]
[1751309023070,0.26461363,658.03,657.47,1.1878836]
[1751309023269,0.26461363,658.03,657.48,1.1878836]
[1751309023468,0.26461363,658.03,657.49,1.1878836]
[1751309023766,0.26461363,658.03,657.5,1.1878836]
[1751309023971,0.26461363,658.03,657.51,1.1878836]
[1751309024171,0.26461363,658.03,657.42,3.25]
[1751309024467,0.26461363,658.03,657.43,1.18786076]
[1751309024671,0.26461363,658.03,657.44,1.18786076]
[1751309024870,0.26461363,658.03,657.45,1.18786076]
[1751309025068,0.26461363,658.03,657.46,1.18786076]
[1751309025273,0.26461363,658.03,657.47,1.18786076]
[1751309025469,0.26461363,658.03,657.48,1.18786076]
[1751309025669,0.26461363,658.03,657.49,1.18786076]
[1751309025874,0.26461363,658.03,657.5,1.18786076]
[1751309026070,0.26461363,658.03,657.51,1.18786076]
[1751309026274,0.26461363,658.03,657.42,3.25]
[1751309026474,0.26461363,658.03,657.43,1.18692698]
[1751309026674,0.26461363,658.03,657.44,1.18692698]
[1751309026975,0.26461363,658.03,657.45,1.18692698]
[1751309027274,0.26461363,658.03,657.46,1.18692698]
[1751309027475,0.26461363,658.03,657.47,1.18692698]
[1751309027673,0.26461363,658.03,657.42,3.25]
[1751309027674,0.26461363,658.03,657.48,1.18692698]
[1751309027871,0.26461363,658.03,657.49,1.18692698]
[1751309028070,0.26461363,658.03,657.5,1.18692698]
[1751309028272,0.26461363,658.03,657.51,1.18692698]
[1751309028571,0.26461363,658.03,657.42,3.25]
[1751309028775,0.26461363,658.03,657.43,1.18692239]
[1751309028976,0.26461363,658.03,657.44,1.18692239]
[1751309029175,0.26461363,658.03,657.45,1.18692239]
[1751309029375,0.26461363,658.03,657.46,1.18692239]
[1751309029572,0.26461363,658.03,657.47,1.18692239]
[1751309029771,0.26461363,658.03,657.48,1.18692239]
[1751309030076,0.26461363,658.03,657.49,1.18692239]
[1751309030274,0.26461363,658.03,657.5,1.18692239]
[1751309030470,0.26461363,658.03,657.42,3.25]
[1751309030774,0.26461363,658.03,657.43,1.18694155]
[1751309030971,0.26461363,658.03,657.44,1.18694155]
[1751309031170,0.26461363,658.03,657.45,1.18694155]
[1751309031470,0.26461363,658.03,657.46,1.18694155]
[1751309031671,0.26461363,658.03,657.47,1.18694155]
[1751309031872,0.26461363,658.03,657.48,1.18694155]
[1751309032072,0.26461363,658.03,657.49,1.18694155]
[1751309032278,0.26461363,658.03,657.5,1.18694155]
[1751309032473,0.26461363,658.03,657.42,3.25]
[1751309032674,0.26461363,658.03,657.43,1.18694741]
[1751309032973,0.26461363,658.03,657.44,1.18694741]
[1751309033170,0.26461363,658.03,657.42,3.25]
[1751309033171,0.26461363,658.03,657.45,1.18694741]
[1751309033372,0.26461363,658.03,657.46,1.18694741]
[1751309033576,0.26461363,658.03,657.47,1.18694741]
[1751309033875,0.26461363,658.03,657.48,1.18694741]
[1751309034071,0.26461363,658.03,657.49,1.18694741]
[1751309034275,0.26461363,658.03,657.5,1.18694741]
[1751309034502,0.26461363,658.03,657.42,3.25]
[1751309034674,0.26461363,658.03,657.43,1.1869501]
[1751309034879,0.26461363,658.03,657.44,1.1869501]
[1751309035074,0.26461363,658.03,657.42,3.25]
[1751309035075,0.26461363,658.03,657.45,1.1869501]
[1751309035280,0.26461363,658.03,657.46,1.1869501]
[1751309035478,0.26461363,658.03,657.47,1.1869501]
[1751309035680,0.26461363,658.03,657.48,1.1869501]
[1751309035874,0.26461363,658.03,657.49,1.1869501]
[1751309036079,0.26461363,658.03,657.42,3.25]
[1751309036080,0.26461363,658.03,657.5,1.1869501]
[1751309036280,0.26461363,658.03,657.42,3.25]
[1751309036479,0.26461363,658.03,657.43,1.1869453]
[1751309036678,0.26461363,658.03,657.44,1.1869453]
[1751309036982,0.26461363,658.03,657.45,1.1869453]
[1751309037180,0.26461363,658.03,657.46,1.1869453]
[1751309037380,0.26461363,658.03,657.47,1.1869453]
[1751309037596,0.26461363,658.03,657.48,1.1869453]
[1751309037776,0.26461363,658.03,657.49,1.1869453]
[1751309037977,0.26461363,658.03,657.5,1.1869453]
[1751309038179,0.26461363,658.03,657.42,3.25]
[1751309038479,0.26461363,658.03,657.43,1.18693903]
[1751309038779,0.26461363,658.03,657.44,1.18693903]
[1751309038979,0.26461363,658.03,657.45,1.18693903]
[1751309039284,0.26461363,658.03,657.46,1.18693903]
[1751309039576,0.26461363,658.03,657.47,1.18693903]
[1751309039781,0.26461363,658.03,657.48,1.18693903]
[1751309039979,0.26461363,658.03,657.49,1.18693903]
[1751309040179,0.26461363,658.03,657.5,1.18693903]
[1751309040378,0.26461363,658.03,657.42,3.25]
[1751309040580,0.26461363,658.03,657.43,1.18694852]
[1751309040780,0.26461363,658.03,657.44,1.18694852]
[1751309040980,0.26461363,658.03,657.45,1.18694852]
[1751309041179,0.26461363,658.03,657.46,1.18694852]
[1751309041479,0.26461363,658.03,657.47,1.18694852]
[1751309041678,0.26461363,658.03,657.48,1.18694852]
[1751309041880,0.26461363,658.03,657.49,1.18694852]
[1751309042079,0.26461363,658.03,657.5,1.18694852]
[1751309042377,0.26461363,658.03,657.42,3.25]
[1751309042582,0.26461363,658.03,657.43,1.18701497]
[1751309042883,0.26461363,658.03,657.44,1.18701497]
[1751309043083,0.26461363,658.03,657.45,1.18701497]
[1751309043380,0.26461363,658.03,657.46,1.18701497]
[1751309043579,0.26461363,658.03,657.47,1.18701497]
[1751309043787,0.26461363,658.03,657.48,1.18701497]
[1751309043984,0.26461363,658.03,657.4,3.722]
[1751309043985,0.26461363,658.03,657.49,1.18701497]
[1751309044287,0.26461363,658.03,657.5,1.18701497]
[1751309044483,0.26461363,658.03,657.4,3.722]
[1751309044681,0.26461363,658.03,657.41,1.18710546]
[1751309044981,0.26461363,658.03,657.42,1.18710546]
[1751309045182,0.26461363,658.03,657.43,1.18710546]
[1751309045381,0.26461363,658.03,657.44,1.18710546]
[1751309045580,0.26461363,658.03,657.45,1.18710546]
[1751309045781,0.26461363,658.03,657.46,1.18710546]
[1751309046085,0.26461363,658.03,657.47,1.18710546]
[1751309046290,0.26461363,658.03,657.48,1.18710546]
[1751309046582,0.26461363,658.03,657.49,1.18710546]
[1751309046788,0.26461363,658.03,657.5,1.18710546]
[1751309047083,0.26461363,658.03,657.48,2.588]
[1751309047286,0.26461363,658.03,657.49,1.18738649]
[1751309047585,0.26461363,658.03,657.48,2.588]
[1751309047586,0.26461363,658.03,657.5,1.18738649]
[1751309047786,0.26461363,658.03,657.48,2.588]
[1751309048086,0.26461363,658.03,657.49,1.1874054]
[1751309048284,0.26461363,658.03,657.5,1.1874054]
[1751309048585,0.26461363,658.03,657.48,2.588]
[1751309048788,0.26461363,658.03,657.49,1.18752228]
[1751309048984,0.26461363,658.03,657.5,1.18752228]
[1751309049185,0.26461363,658.03,657.48,2.588]
[1751309049386,0.26461363,658.03,657.49,1.1876339]
[1751309049686,0.26461363,658.03,657.5,1.1876339]
[1751309049888,0.26461363,658.03,657.48,2.588]
[1751309050185,0.26461363,658.03,657.49,1.18765046]
[1751309050384,0.26461363,658.03,657.5,1.18765046]
[1751309050586,0.26461363,658.03,657.51,1.18765046]
[1751309050786,0.26461363,658.03,657.48,2.588]
[1751309050985,0.26461363,658.03,657.49,1.18779081]
[1751309051189,0.26461363,658.03,657.5,1.18779081]
[1751309051393,0.26461363,658.03,657.51,1.18779081]
[1751309051589,0.26461363,658.03,657.48,2.588]
[1751309051786,0.26461363,658.03,657.49,1.18795806]
[1751309051990,0.26461363,658.03,657.5,1.18795806]
[1751309052187,0.26461363,658.03,657.51,1.18795806]
[1751309052492,0.26461363,658.03,657.48,2.588]
[1751309052691,0.26461363,658.03,657.49,1.18815077]
[1751309052987,0.26461363,658.03,657.5,1.18815077]
[1751309053187,0.26461363,658.03,657.51,1.18815077]
[1751309053492,0.26461363,658.03,657.52,1.18815077]
[1751309053686,0.26461363,658.03,657.48,2.588]
[1751309053891,0.26461363,658.03,657.49,1.18838132]
[1751309054093,0.26461363,658.03,657.5,1.18838132]
[1751309054389,0.26461363,658.03,657.51,1.18838132]
[1751309054591,0.26461363,658.03,657.48,2.588]
[1751309054592,0.26461363,658.03,657.52,1.18838132]
[1751309054797,0.26461363,658.03,657.53,1.18838132]
[1751309054993,0.26461363,658.03,657.48,2.588]
[1751309055193,0.26461363,658.03,657.49,1.18893386]
[1751309055391,0.26461363,658.03,657.5,1.18893386]
[1751309055592,0.26461363,658.03,657.51,1.18893386]
[1751309055894,0.26461363,658.03,657.52,1.18893386]
[1751309056088,0.26461363,658.03,657.53,1.18893386]
[1751309056390,0.26461363,658.03,657.54,1.18893386]
[1751309056592,0.26461363,658.03,657.48,2.588]
[1751309056793,0.26461363,658.03,657.49,1.18936107]
[1751309057093,0.26461363,658.03,657.5,4.43836107]
[1751309057392,0.26461363,658.03,657.51,1.18936107]
[1751309057594,0.26461363,658.03,657.5,3.249]
[1751309070098,0.26461363,658.03,657.48,2.588]
[1751309073807,0.26461363,658.03,657.49,3.523]
[1751309106736,0.26461363,658.03,657.5,3.037]
[1751309112642,3.79125171,658.64,657.5,3.037]
[1751309112942,0.26453418,658.1,657.5,3.037]
[1751309113140,3.79125171,658.72,657.5,3.037]
[1751309113546,0.26453317,658.15,657.5,3.037]
[1751309113740,3.79125171,658.73,657.5,3.037]
[1751309113945,0.2645201,658.17,657.5,3.037]
[1751309118454,0.2645201,658.17,657.51,1.18784356]
[1751309118647,0.2645201,658.17,657.52,1.18784356]
[1751309118853,0.2645201,658.17,657.5,3.037]
[1751309119053,0.2645201,658.17,657.51,1.18769836]
[1751309119250,0.2645201,658.17,657.52,1.18769836]
[1751309119455,0.2645201,658.17,657.53,1.18769836]
[1751309119651,0.2645201,658.17,657.5,3.037]
[1751309119652,0.2645201,658.17,657.54,1.18769836]
[1751309119950,0.2645201,658.17,657.5,3.037]
[1751309120146,0.2645201,658.17,657.51,1.1875343]
[1751309120351,0.2645201,658.17,657.52,1.1875343]
[1751309120547,0.2645201,658.17,657.53,1.1875343]
[1751309120750,0.2645201,658.17,657.54,1.1875343]
[1751309120950,0.2645201,658.17,657.5,3.037]
[1751309121154,0.2645201,658.17,657.55,4.125]
[1751309157481,0.2645201,658.17,657.56,4.044]
[1751309170589,0.2645201,658.17,657.57,3.009]
[1751309179600,0.2645201,658.17,657.58,2.863]
[1751309197613,0.2645201,658.17,657.59,1.18869449]
[1751309197912,0.2645201,658.17,657.6,1.18866335]
[1751309198108,0.2645201,658.17,657.61,1.18866335]
[1751309198312,0.2645201,658.17,657.58,2.863]
[1751309198512,0.2645201,658.17,657.59,1.18874085]
[1751309198711,0.2645201,658.17,657.6,1.18874085]
[1751309198909,0.2645201,658.17,657.61,1.18874085]
[1751309199110,0.2645201,658.17,657.58,2.863]
[1751309199409,0.2645201,658.17,657.59,1.18872361]
[1751309199612,0.2645201,658.17,657.6,1.18872361]
[1751309199812,0.2645201,658.17,657.61,1.18872361]
[1751309200011,0.2645201,658.17,657.62,1.18872361]
[1751309200212,0.2645201,658.17,657.58,2.863]
[1751309200413,0.2645201,658.17,657.59,1.18881416]
[1751309200615,0.2645201,658.17,657.6,1.18881416]
[1751309200811,0.2645201,658.17,657.61,1.18881416]
[1751309201112,0.2645201,658.17,657.62,1.18881416]
[1751309201412,0.2645201,658.17,657.58,2.863]
[1751309201618,0.2645201,658.17,657.59,1.18905608]
[1751309201921,0.2645201,658.17,657.6,1.18905608]
[1751309202216,0.2645201,658.17,657.61,1.18905608]
[1751309202412,0.2645201,658.17,657.62,1.18905608]
[1751309202613,0.2645201,658.17,657.63,1.18905608]
[1751309202817,0.2645201,658.17,657.58,2.863]
[1751309203017,0.2645201,658.17,657.59,1.18919907]
[1751309203217,0.2645201,658.17,657.6,1.18919907]
[1751309203414,0.2645201,658.17,657.61,1.18919907]
[1751309203620,0.2645201,658.17,657.62,1.18919907]
[1751309203818,0.2645201,658.17,657.63,1.18919907]
[1751309204016,0.2645201,658.17,657.58,2.863]
[1751309204236,0.2645201,658.17,657.59,1.18936918]
[1751309204416,0.2645201,658.17,657.6,1.18936918]
[1751309204713,0.2645201,658.17,657.61,1.18936918]
[1751309204913,0.2645201,658.17,657.62,1.18936918]
[1751309205117,0.2645201,658.17,657.63,1.18936918]
[1751309205317,0.2645201,658.17,657.64,1.18935663]
[1751309205616,0.2645201,658.17,657.58,2.863]
[1751309205814,0.2645201,658.17,657.59,1.18935663]
[1751309206018,0.2645201,658.17,657.6,1.18935663]
[1751309206218,0.2645201,658.17,657.61,1.18935663]
[1751309206415,0.2645201,658.17,657.62,1.18935663]
[1751309206718,0.2645201,658.17,657.63,1.18935663]
[1751309207014,0.2645201,658.17,657.64,1.18935663]
[1751309207220,0.2645201,658.17,657.58,2.863]
[1751309207415,0.2645201,658.17,657.59,1.18953401]
[1751309207624,0.2645201,658.17,657.6,1.18953401]
[1751309207823,0.2645201,658.17,657.61,1.18953401]
[1751309208022,0.2645201,658.17,657.62,1.18953401]
[1751309208318,0.2645201,658.17,657.63,1.18953401]
[1751309208628,0.2645201,658.17,657.64,1.18949509]
[1751309208815,0.2645201,658.17,657.58,2.863]
[1751309209020,0.2645201,658.17,657.59,1.18942215]
[1751309209320,0.2645201,658.17,657.6,1.18942215]
[1751309209517,0.2645201,658.17,657.61,1.18942215]
[1751309209716,0.2645201,658.17,657.62,1.18942215]
[1751309210018,0.2645201,658.17,657.63,1.18942215]
[1751309210220,0.2645201,658.17,657.64,1.18942215]
[1751309210419,0.2645201,658.17,657.65,1.18942215]
[1751309210617,0.2645201,658.17,657.66,1.18942215]
[1751309210821,0.2645201,658.17,657.67,1.18942215]
[1751309211021,0.2645201,658.17,657.68,1.18942215]
[1751309211221,0.2645201,658.17,657.58,2.863]
[1751309211421,0.2645201,658.17,657.59,1.18889656]
[1751309211722,0.2645201,658.17,657.6,1.18889656]
[1751309211919,0.2645201,658.17,657.61,1.18889656]
[1751309212125,0.2645201,658.17,657.62,1.18889656]
[1751309212324,0.2645201,658.17,657.63,1.18889656]
[1751309212523,0.2645201,658.17,657.64,1.18889656]
[1751309212720,0.2645201,658.17,657.65,1.18889656]
[1751309212921,0.2645201,658.17,657.66,1.18889656]
[1751309213119,0.2645201,658.17,657.67,1.18889656]
[1751309213323,0.2645201,658.17,657.58,2.863]
[1751309213540,0.2645201,658.17,657.59,1.18864968]
[1751309213820,0.2645201,658.17,657.6,1.18864968]
[1751309214020,0.2645201,658.17,657.61,1.18864968]
[1751309214220,0.2645201,658.17,657.62,1.18864968]
[1751309214424,0.2645201,658.17,657.63,1.18864968]
[1751309214732,0.2645201,658.17,657.64,1.18864968]
[1751309214925,0.2645201,658.17,657.65,1.18864968]
[1751309215137,0.2645201,658.17,657.58,2.863]
[1751309215328,0.2645201,658.17,657.59,1.18856851]
[1751309215532,0.2645201,658.17,657.6,1.18856851]
[1751309215730,0.2645201,658.17,657.61,1.18856851]
[1751309216030,0.2645201,658.17,657.62,1.18856851]
[1751309216232,0.2645201,658.17,657.63,1.18856851]
[1751309216432,0.2645201,658.17,657.64,1.18856851]
[1751309216731,0.2645201,658.17,657.65,1.18856851]
[1751309216933,0.2645201,658.17,657.58,2.863]
[1751309217130,0.2645201,658.17,657.59,1.18850896]
[1751309217430,0.2645201,658.17,657.6,1.18850896]
[1751309217639,0.2645201,658.17,657.61,1.18850896]
[1751309217934,0.2645201,658.17,657.62,1.18850896]
[1751309218133,0.2645201,658.17,657.63,1.18850896]
[1751309218431,0.2645201,658.17,657.64,1.18850896]
[1751309218632,0.2645201,658.17,657.65,1.18850896]
[1751309218834,0.2645201,658.17,657.66,1.18850896]
[1751309219031,0.2645201,658.17,657.59,3.572]
[1751309219231,0.2645201,658.17,657.6,1.188433]
[1751309219434,0.2645201,658.17,657.61,1.188433]
[1751309219734,0.2645201,658.17,657.62,1.188433]
[1751309219930,0.2645201,658.17,657.63,1.188433]
[1751309220135,0.2645201,658.17,657.64,1.188433]
[1751309220331,0.2645201,658.17,657.65,1.188433]
[1751309220636,0.2645201,658.17,657.66,1.188433]
[1751309220834,0.2645201,658.17,657.59,3.572]
[1751309221038,0.2645201,658.17,657.6,1.18839698]
[1751309221237,0.2645201,658.17,657.61,1.18839698]
[1751309221434,0.2645201,658.17,657.62,1.18839698]
[1751309221737,0.2645201,658.17,657.63,1.18839698]
[1751309221937,0.2645201,658.17,657.64,1.18839698]
[1751309222137,0.2645201,658.17,657.65,1.18839698]
[1751309222340,0.2645201,658.17,657.66,1.18839698]
[1751309222540,0.2645201,658.17,657.59,3.572]
[1751309222738,0.2645201,658.17,657.6,1.1883341]
[1751309222935,0.2645201,658.17,657.61,1.1883341]
[1751309223142,0.2645201,658.17,657.62,1.1883341]
[1751309223341,0.2645201,658.17,657.63,1.1883341]
[1751309223542,0.2645201,658.17,657.64,1.1883341]
[1751309223851,0.2645201,658.17,657.65,1.1883341]
[1751309224041,0.2645201,658.17,657.66,1.1883341]
[1751309224248,0.2645201,658.17,657.59,3.572]
[1751309224541,0.2645201,658.17,657.6,1.18827021]
[1751309224741,0.2645201,658.17,657.61,1.18827021]
[1751309224941,0.2645201,658.17,657.62,1.18827021]
[1751309225138,0.2645201,658.17,657.63,1.18827021]
[1751309225344,0.2645201,658.17,657.64,1.18827021]
[1751309225544,0.2645201,658.17,657.65,1.18827021]
[1751309225744,0.2645201,658.17,657.66,1.18827021]
[1751309226043,0.2645201,658.17,657.62,4.259]
[1751309226239,0.2645201,658.17,657.63,1.18823059]
[1751309226440,0.2645201,658.17,657.64,1.18823059]
[1751309226739,0.2645201,658.17,657.62,4.259]
[1751309226740,0.2645201,658.17,657.65,1.18823059]
[1751309226960,0.2645201,658.17,657.66,1.18823059]
[1751309227144,0.2645201,658.17,657.67,1.18823059]
[1751309227344,0.2645201,658.17,657.62,4.259]
[1751309227541,0.2645201,658.17,657.63,1.1881963]
[1751309227841,0.2645201,658.17,657.64,1.1881963]
[1751309228044,0.2645201,658.17,657.65,1.1881963]
[1751309228340,0.2645201,658.17,657.66,1.1881963]
[1751309228545,0.2645201,658.17,657.62,4.259]
[1751309228742,0.2645201,658.17,657.63,1.18817609]
[1751309229046,0.2645201,658.17,657.64,1.18817609]
[1751309229244,0.2645201,658.17,657.65,1.18817609]
[1751309229442,0.2645201,658.17,657.66,1.18817609]
[1751309229746,0.2645201,658.17,657.62,4.259]
[1751309229943,0.2645201,658.17,657.63,1.18815955]
[1751309230145,0.2645201,658.17,657.64,1.18815955]
[1751309230445,0.2645201,658.17,657.65,1.18815955]
[1751309230747,0.2645201,658.17,657.66,1.18815955]
[1751309230941,0.2645201,658.17,657.62,4.259]
[1751309231145,0.2645201,658.17,657.63,1.18814675]
[1751309231342,0.2645201,658.17,657.64,1.18814675]
[1751309231548,0.2645201,658.17,657.65,1.18814675]
[1751309231745,0.2645201,658.17,657.66,1.18814675]
[1751309232043,0.2645201,658.17,657.62,4.259]
[1751309232343,0.2645201,658.17,657.63,1.18813144]
[1751309232645,0.2645201,658.17,657.64,1.18813144]
[1751309232842,0.2645201,658.17,657.65,1.18813144]
[1751309233046,0.2645201,658.17,657.66,1.18813144]
[1751309233248,0.2645201,658.17,657.62,4.259]
[1751309233445,0.2645201,658.17,657.63,1.18812898]
[1751309233644,0.2645201,658.17,657.64,1.18812898]
[1751309233846,0.2645201,658.17,657.65,1.18812898]
[1751309234043,0.2645201,658.17,657.66,1.18812898]
[1751309234344,0.2645201,658.17,657.62,4.259]
[1751309234544,0.2645201,658.17,657.63,1.1881299]
[1751309234744,0.2645201,658.17,657.64,1.1881299]
[1751309234943,0.2645201,658.17,657.65,1.1881299]
[1751309235148,0.2645201,658.17,657.66,1.1881299]
[1751309235343,0.2645201,658.17,657.62,4.259]
[1751309235543,0.2645201,658.17,657.63,1.18807738]
[1751309235844,0.2645201,658.17,657.64,1.18807738]
[1751309236045,0.2645201,658.17,657.65,1.18807738]
[1751309236244,0.2645201,658.17,657.66,1.18807738]
[1751309236444,0.2645201,658.17,657.62,4.259]
[1751309236750,0.2645201,658.17,657.63,1.18808314]
[1751309237047,0.2645201,658.17,657.64,1.18808314]
[1751309237246,0.2645201,658.17,657.65,1.18808314]
[1751309237444,0.2645201,658.17,657.66,1.18808314]
[1751309237646,0.2645201,658.17,657.62,4.259]
[1751309241344,0.2645201,658.17,657.63,1.18816567]
[1751309241547,0.2645201,658.17,657.62,4.259]
[1751309241751,0.2645201,658.17,657.63,1.18816567]
[1751309241946,0.2645201,658.17,657.62,4.259]
[1751309242152,0.2645201,658.17,657.63,1.18816567]
[1751309242352,0.2645201,658.17,657.59,3.572]
[1751309242556,0.2645201,658.17,657.6,1.18819382]
[1751309242749,0.2645201,658.17,657.61,1.18819382]
[1751309242953,0.2645201,658.17,657.62,1.18819382]
[1751309243150,0.2645201,658.17,657.63,1.18819382]
[1751309243463,0.2645201,658.17,657.59,3.572]
[1751309243654,0.2645201,658.17,657.6,1.18822207]
[1751309243950,0.2645201,658.17,657.61,1.18822207]
[1751309244153,0.2645201,658.17,657.62,1.18822207]
[1751309244354,0.2645201,658.17,657.63,1.18822207]
[1751309244547,0.2645201,658.17,657.59,3.572]
[1751309244857,0.2645201,658.17,657.6,1.18825441]
[1751309245053,0.2645201,658.17,657.61,1.18825441]
[1751309245254,0.2645201,658.17,657.62,1.18825441]
[1751309245551,0.2645201,658.17,657.63,5.17125441]
[1751309245753,0.2645201,658.17,657.63,3.983]
[1751309247653,0.2645201,658.17,657.64,1.18837769]
[1751309247858,0.2645201,658.17,657.65,1.18837769]
[1751309248053,0.2645201,658.17,657.66,1.18837769]
[1751309248259,0.2645201,658.17,657.67,1.18837769]
[1751309248459,0.2645201,658.17,657.68,1.18837769]
[1751309248756,0.2645201,658.17,657.69,1.18837769]
[1751309248960,0.2645201,658.17,657.63,3.983]
[1751309249160,0.2645201,658.17,657.64,1.18842901]
[1751309249360,0.2645201,658.17,657.65,1.18842901]
[1751309249657,0.2645201,658.17,657.66,1.18842901]
[1751309249860,0.2645201,658.17,657.67,1.18842901]
[1751309250159,0.2645201,658.17,657.68,1.18842901]
[1751309250359,0.2645201,658.17,657.63,3.983]
[1751309250360,0.2645201,658.17,657.69,1.18842901]
[1751309250559,0.2645201,658.17,657.63,3.983]
[1751309250778,0.2645201,658.17,657.64,1.18854886]
[1751309250959,0.2645201,658.17,657.65,1.18854886]
[1751309251160,0.2645201,658.17,657.66,1.18854886]
[1751309251357,0.2645201,658.17,657.67,1.18854886]
[1751309251661,0.2645201,658.17,657.68,1.18854886]
[1751309251856,0.2645201,658.17,657.69,1.18854886]
[1751309252059,0.2645201,658.17,657.63,3.983]
[1751309252258,0.2645201,658.17,657.64,1.18869683]
[1751309252562,0.2645201,658.17,657.65,1.18869683]
[1751309252759,0.2645201,658.17,657.66,1.18869683]
[1751309253055,0.2645201,658.17,657.67,1.18869683]
[1751309253358,0.2645201,658.17,657.68,1.18869683]
[1751309253556,0.2645201,658.17,657.69,1.18869683]
[1751309253757,0.2645201,658.17,657.7,1.18869683]
[1751309253956,0.2645201,658.17,657.71,1.18869683]
[1751309254160,0.2645201,658.17,657.72,1.18883566]
[1751309254356,0.2645201,658.17,657.63,3.983]
[1751309254568,0.2645201,658.17,657.64,1.18883566]
[1751309254859,0.2645201,658.17,657.65,1.18883566]
[1751309255156,0.2645201,658.17,657.66,1.18883566]
[1751309255358,0.2645201,658.17,657.67,1.18883566]
[1751309255556,0.2645201,658.17,657.68,1.18883566]
[1751309255858,0.2645201,658.17,657.69,1.18883566]
[1751309256060,0.2645201,658.17,657.7,1.18883566]
[1751309256260,0.2645201,658.17,657.71,1.18883566]
[1751309256455,0.2645201,658.17,657.63,3.983]
[1751309256655,0.2645201,658.17,657.64,1.18901907]
[1751309256858,0.2645201,658.17,657.65,1.18901907]
[1751309257060,0.2645201,658.17,657.66,1.18901907]
[1751309257358,0.2645201,658.17,657.67,1.18901907]
[1751309257557,0.2645201,658.17,657.68,1.18901907]
[1751309257757,0.2645201,658.17,657.69,1.18901907]
[1751309258060,0.2645201,658.17,657.7,1.18901907]
[1751309258260,0.2645201,658.17,657.63,3.983]
[1751309258261,0.2645201,658.17,657.71,1.18901907]
[1751309258458,0.2645201,658.17,657.72,1.18901907]
[1751309258657,0.2645201,658.17,657.63,3.983]
[1751309258863,0.2645201,658.17,657.64,1.18912027]
[1751309259062,0.2645201,658.17,657.65,1.18912027]
[1751309259361,0.2645201,658.17,657.66,1.18912027]
[1751309259661,0.2645201,658.17,657.67,1.18912027]
[1751309259857,0.2645201,658.17,657.68,1.18912027]
[1751309260057,0.2645201,658.17,657.69,1.18912027]
[1751309260256,0.2645201,658.17,657.7,1.18912027]
[1751309260461,0.2645201,658.17,657.71,1.18912027]
[1751309260660,0.2645201,658.17,657.72,1.18912027]
[1751309260860,0.2645201,658.17,657.59,3.572]
[1751309261057,0.2645201,658.17,657.6,1.18918856]
[1751309261261,0.2645201,658.17,657.61,1.18918856]
[1751309261458,0.2645201,658.17,657.62,1.18918856]
[1751309261762,0.2645201,658.17,657.63,1.18918856]
[1751309261963,0.2645201,658.17,657.64,1.18918856]
[1751309262164,0.2645201,658.17,657.65,1.18918856]
[1751309262463,0.2645201,658.17,657.66,1.18918856]
[1751309262759,0.2645201,658.17,657.67,1.18918856]
[1751309262963,0.2645201,658.17,657.68,1.18918856]
[1751309263164,0.2645201,658.17,657.69,1.18918856]
[1751309263359,0.2645201,658.17,657.7,1.18918856]
[1751309263563,0.2645201,658.17,657.71,1.18918856]
[1751309263762,0.2645201,658.17,657.72,1.18918856]
[1751309263961,0.2645201,658.17,657.68,3.71]
[1751309264270,0.2645201,658.17,657.69,1.18932413]
[1751309264465,0.2645201,658.17,657.7,1.18932413]
[1751309264661,0.2645201,658.17,657.71,1.18932413]
[1751309264862,0.2645201,658.17,657.72,1.18932413]
[1751309265065,0.2645201,658.17,657.68,3.71]
[1751309265365,0.2645201,658.17,657.69,1.18847614]
[1751309265562,0.2645201,658.17,657.7,1.18847614]
[1751309265760,0.2645201,658.17,657.71,1.18847614]
[1751309266065,0.2645201,658.17,657.72,1.18847614]
[1751309266267,0.2645201,658.17,657.68,3.71]
[1751309266563,0.2645201,658.17,657.69,1.18855677]
[1751309266763,0.2645201,658.17,657.7,1.18855677]
[1751309266968,0.2645201,658.17,657.71,1.18855677]
[1751309267169,0.2645201,658.17,657.72,1.18855677]
[1751309267467,0.2645201,658.17,657.73,1.18855677]
[1751309267668,0.2645201,658.17,657.68,3.71]
[1751309267969,0.2645201,658.17,657.69,1.18865423]
[1751309268168,0.2645201,658.17,657.7,1.18865423]
[1751309268466,0.2645201,658.17,657.71,1.18865423]
[1751309268666,0.2645201,658.17,657.72,1.18865423]
[1751309268966,0.2645201,658.17,657.68,3.71]
[1751309269269,0.2645201,658.17,657.69,1.18878202]
[1751309269465,0.2645201,658.17,657.68,3.71]
[1751309269466,0.2645201,658.17,657.7,1.18878202]
[1751309269665,0.2645201,658.17,657.71,1.18878202]
[1751309269870,0.2645201,658.17,657.72,1.18878202]
[1751309270171,0.2645201,658.17,657.68,3.71]
[1751309270369,0.2645201,658.17,657.69,1.18879145]
[1751309270567,0.2645201,658.17,657.7,1.18879145]
[1751309270765,0.2645201,658.17,657.68,3.71]